fUSD/lending_fUSD_20260304
["ID","MTS","AMOUNT","RATE_DAILY","PERIOD"]
[407660325,1772622632858,-890.60461206,0.0001799,2]
[407660326,1772622632867,-500.0,0.00017999,2]
[407660327,1772622632876,-500.0,0.00017999,2]
[407660328,1772622632886,-500.0,0.00017999,2]
[407660329,1772622632896,-500.0,0.00017999,2]
[407660330,1772622632906,-500.0,0.00017999,2]
[407660331,1772622632916,-500.0,0.00017999,2]
[407660332,1772622632925,-500.0,0.00017999,2]
[407660333,1772622632935,-500.0,0.00017999,2]
[407660334,1772622632945,-482.10450217,0.00017999,2]
[407660335,1772622632954,-500.0,0.00017999,2]
[407660336,1772622632963,-500.0,0.00017999,2]
[407660337,1772622632972,-500.0,0.00017999,2]
[407660338,1772622632982,-500.0,0.00017999,2]
[407660339,1772622632991,-500.0,0.00017999,2]
[407660340,1772622633000,-500.0,0.00017999,2]
[407660341,1772622633010,-500.0,0.00017999,2]
[407660342,1772622633019,-500.0,0.00017999,2]
[407660343,1772622633029,-500.0,0.00017999,2]
[407660344,1772622633038,-302.66252246,0.00017999,2]
[407660345,1772622633047,-500.0,0.00017999,2]
[407660346,1772622633057,-287.28084858,0.00017999,2]
[407660347,1772622633067,-150.5702365,0.00017999,2]
[407660348,1772622633077,-161.52029309,0.00017999,2]
[407660349,1772622633087,-15808.24298323,0.00018,2]
[407660350,1772622633100,-46194.82419224,0.00018,2]
[407660351,1772622633111,-104698.52708602,0.00018,2]
[407660352,1772622633123,-166428.32517153,0.00018,2]
[407660355,1772622637952,-1364.88945289,0.0001353,2]
[407660356,1772622637964,-1554.53461667,0.0001353,2]
[407660357,1772622637975,-1080.57593044,0.0001353,2]
[407660358,1772622637984,-3938.27013245,0.00013868,2]
[407660359,1772622637995,-61.72986755,0.00013868,2]
[407660360,1772622638005,-2319.87905595,0.00014207,2]
[407660361,1772622638017,-1680.12094405,0.00014207,2]
[407660362,1772622638026,-4000.0,0.00014545,2]
[407660363,1772622638035,-4000.0,0.00014883,2]
[407660364,1772622638044,-820263.36085652,0.00018,2]
[407660365,1772622638052,-154391.4364288,0.00018,2]
[407660366,1772622638061,-413.46020107,0.000185,2]
[407660367,1772622638070,-413.46020107,0.000191,2]
[407660368,1772622638079,-2000.0,0.000192,2]
[407660369,1772622638088,-25954.47,0.000192,2]
[407660370,1772622638097,-1022.84666167,0.0002077,2]
[407660371,1772622638106,-981.7176459,0.00020771,2]
[407660372,1772622638115,-1078.12,0.00021416,2]
[407660373,1772622638124,-922.997,0.00021416,2]
[407660374,1772622638134,-2458.0,0.00021416,2]
[407660375,1772622638143,-1117.08,0.00021416,2]
[407660376,1772622638151,-150.0,0.00021644,2]
[407660377,1772622638160,-150.0,0.00021699,2]
[407660378,1772622638169,-1678.9004029,0.00021734,2]
[407660379,1772622638178,-150.0,0.00021754,2]
[407660380,1772622638187,-150.0,0.00021808,2]
[407660381,1772622638196,-2000.0,0.000229,2]
[407660382,1772622638205,-981.7176459,0.00023641,2]
[407660383,1772622638215,-1022.84666167,0.0002365,2]
[407660384,1772622638225,-1041.0,0.00024416,2]
[407660385,1772622638235,-2458.0,0.00024416,2]
[407660386,1772622638244,-499.17,0.00024452,2]
[407660387,1772622638253,-1678.9004029,0.00024573,2]
[407660388,1772622638263,-150.0,0.00024658,2]
[407660389,1772622638272,-181.67,0.00024658,30]
[407660391,1772622638281,-1000.0,0.0002468,2]
[407660392,1772622638290,-4197.26,0.0002468,2]
[407660394,1772622638299,-1400.0,0.000249,9]
[407660396,1772622638308,-466376.291059,0.000249,3]
[407660398,1772622638317,-1870.6398595,0.00025224,2]
[407660400,1772622638326,-11375.0314892,0.00025323,3]
[407660402,1772622638335,-500.0,0.00025333,2]
[407660404,1772622638344,-150.0,0.0002589,2]
[407660406,1772622638354,-981.7176459,0.00026512,2]
[407660408,1772622638367,-151.0,0.00026525,2]
[407660410,1772622638376,-151.0,0.00026525,2]
[407660412,1772622638386,-1022.84666167,0.00026531,2]
[407660414,1772622638395,-2000.0,0.000266,2]
[407660416,1772622638407,-200.0,0.00026776,2]
[407660418,1772622638416,-274.0,0.00026795,2]
[407660420,1772622638426,-11375.0314892,0.00026804,3]
[407660422,1772622638436,-3170.5909,0.00026814,2]
[407660424,1772622638445,-27218.8594,0.00026814,2]
[407660426,1772622638454,-150.0,0.00027185,2]
[407660428,1772622638464,-300.0,0.00027397,2]
[407660430,1772622638474,-1000.0,0.00027397,20]
[407660432,1772622638484,-989.46,0.00027397,10]
[407660434,1772622638493,-824.55,0.00027397,10]
[407660436,1772622638503,-687.12,0.00027397,10]
[407660438,1772622638512,-572.6,0.00027397,10]
[407660440,1772622638522,-1678.9004029,0.00027412,2]
[407660442,1772622638531,-2458.0,0.00027416,2]
[407660444,1772622638540,-11375.0314892,0.0002749,3]
[407660446,1772622638549,-25954.47,0.000275,7]
[407660448,1772622638558,-11375.0314892,0.00027755,3]
[407660450,1772622638567,-1000.0,0.00027765,2]
[407660452,1772622638577,-1900.0,0.000278,10]
[407660454,1772622638586,-2400.0,0.000279,10]
[407660456,1772622638594,-275.3885982,0.00027952,2]
[407660458,1772622638604,-500.0,0.00027952,2]
[407660460,1772622638613,-500.0,0.00027952,2]
[407660462,1772622638622,-500.0,0.00027952,2]
[407660464,1772622638631,-500.0,0.00027952,2]
[407660466,1772622638641,-500.0,0.00027952,2]
[407660468,1772622638649,-500.0,0.00027952,2]
[407660470,1772622638659,-500.0,0.00027952,2]
[407660472,1772622638668,-500.0,0.00027952,2]
[407660474,1772622638677,-500.0,0.00027952,2]
[407660476,1772622638686,-174.61919141,0.00027952,2]
[407660478,1772622638695,-500.0,0.00027952,2]
[407660479,1772622638704,-500.0,0.00027952,2]
[407660481,1772622638713,-693.3919763,0.00027952,2]
[407660483,1772622638722,-151.0,0.00027952,2]
[407660485,1772622638732,-364.83048626,0.00027952,2]
[407660487,1772622638741,-719.04747942,0.00028007,2]
[407660490,1772622638751,-151.0,0.00028007,2]
[407660491,1772622638760,-745.65223616,0.00028062,2]
[407660493,1772622638770,-151.0,0.00028062,2]
[407660495,1772622638779,-773.2413689,0.00028117,2]
[407660497,1772622638788,-274.00152663,0.00028117,2]
[407660499,1772622638797,-1206.5711,0.0002817,2]
[407660501,1772622638806,-265.85621396,0.0002817,2]
[407660503,1772622638816,-801.85129955,0.00028172,2]
[407660505,1772622638825,-199.65636282,0.00028182,5]
[407660506,1772622638836,-16526.84320769,0.00028182,2]
[407660507,1772622638846,-831.51979763,0.00028227,2]
[407660508,1772622638855,-11375.0314892,0.00028259,3]
[407660509,1772622638864,-79625.2204248,0.0002826,3]
[407660510,1772622638875,-890.60461206,0.0002826,2]
[407660511,1772622638888,-500.0,0.00028269,2]
[407660512,1772622638899,-512.98707125,0.00028269,2]
[407660513,1772622638908,-500.0,0.00028269,2]
[407660514,1772622638917,-500.0,0.00028269,2]
[407660515,1772622638926,-500.0,0.00028269,2]
[407660516,1772622638936,-500.0,0.00028269,2]
[407660517,1772622638945,-499.99999999,0.00028269,2]
[407660518,1772622638955,-602.06361303,0.00028269,120]
[407660519,1772622638964,-121769.91500652,0.0002827,2]
[407660520,1772622638979,-1623.70486216,0.0002827,2]
[407660521,1772622638991,-1374.14,0.0002827,2]
[407660522,1772622639004,-771.03473472,0.0002827,2]
[407660523,1772622639015,-812.71556961,0.0002827,2]
[407660524,1772622639026,-451.15504761,0.0002827,2]
[407660527,1772622640292,-1280.8790409,0.0002827,2]
[407660528,1772622640305,-590.72355662,0.0002827,2]
[407660529,1772622640316,-961.69544861,0.0002827,2]
[407660530,1772622640347,-11140.9429633,0.0002827,2]
[407660531,1772622640559,-10538.098968,0.0002827,2]
[407660532,1772622640772,-398.23705892,0.0002827,2]
[407660557,1772622643040,-489.24705646,0.0002827,2]
[407660559,1772622643052,-10004.07080899,0.0002827,2]
[407660565,1772622643147,-524700.96950459,0.0002827,2]
[407660567,1772622643266,-107.53350462,0.0002827,2]
[407660569,1772622643278,-1018873.9846902,0.0002827,2]
[407660571,1772622643291,-64367.70217233,0.0002827,2]
[407660778,1772623494056,-265.0,0.00014,2]
[407660779,1772623494079,-507.0,0.00014,2]
[407660780,1772623494100,-1261.57024195,0.00014001,2]
[407660781,1772623494121,-203.63062268,0.00014001,2]
[407660782,1772623494144,-290.75623666,0.00014003,2]
[407660783,1772623494166,-2500.0,0.00014005,2]
[407660784,1772623494188,-200.0,0.00014005,2]
[407660785,1772623494214,-300.0,0.00014011,2]
[407660786,1772623494235,-600.0,0.00014022,2]
[407660787,1772623494258,-200.0,0.00014025,2]
[407660788,1772623494279,-227.8228264,0.00014025,2]
[407660789,1772623494301,-300.0,0.00014047,2]
[407660790,1772623494328,-300.0,0.00014047,2]
[407660791,1772623494349,-427.31317161,0.00014047,2]
[407660792,1772623494370,-600.0,0.00014082,2]
[407660793,1772623494391,-600.0,0.00014082,2]
[407660794,1772623494413,-600.0,0.00014082,2]
[407660795,1772623494434,-600.0,0.000154,2]
[407660796,1772623494455,-21.9069007,0.000154,2]
[407660804,1772623832022,-238.0,0.00010774,2]
[407660805,1772623832033,-263.91,0.00010774,7]
[407660806,1772623832043,-580.47,0.00010774,2]
[407660807,1772623832076,-454.24,0.00010774,2]
[407660808,1772623832085,-1034.71,0.00011341,2]
[407660809,1772623832095,-495.3537075,0.00011851,2]
[407660810,1772623832107,-4.6462925,0.00011851,2]
[407660811,1772623832116,-193.0,0.00011851,2]
[407660812,1772623832125,-4287.35030443,0.00011851,2]
[407660813,1772623832134,-1034.71,0.00011908,2]
[407660814,1772623832144,-1034.71,0.00012475,2]
[407660815,1772623832154,-1034.71,0.00013043,2]
[407660816,1772623832163,-1034.71,0.0001361,2]
[407660817,1772623832172,-507.8295,0.00014,2]
[407660818,1772623832182,-1034.71,0.00014177,2]
[407660819,1772623832191,-1034.71,0.00014744,2]
[407660820,1772623832201,-1034.71,0.00015311,2]
[407660821,1772623832211,-2500.0,0.00015599,2]
[407660822,1772623832221,-300.0,0.00015797,2]
[407660823,1772623832230,-1034.71,0.00015878,2]
[407660824,1772623832241,-2500.0,0.00016186,2]
[407660825,1772623832250,-600.0,0.00016195,2]
[407660826,1772623832260,-1034.71,0.00016445,2]
[407660827,1772623832270,-300.0,0.00016597,2]
[407660828,1772623832279,-300.0,0.00016597,2]
[407660829,1772623832289,-2500.0,0.0001694,2]
[407660830,1772623832298,-151.0,0.0001699,2]
[407660831,1772623832307,-151.0,0.0001699,2]
[407660832,1772623832317,-151.0,0.0001699,2]
[407660833,1772623832327,-151.0,0.0001699,2]
[407660834,1772623832336,-151.0,0.0001699,2]
[407660835,1772623832345,-151.0,0.0001699,2]
[407660836,1772623832355,-151.0,0.0001699,2]
[407660837,1772623832364,-257.60776429,0.0001699,2]
[407660838,1772623832374,-1034.71,0.00017012,2]
[407660839,1772623832383,-600.0,0.00017458,2]
[407660840,1772623832393,-600.0,0.00017458,2]
[407660842,1772623832402,-600.0,0.00017458,2]
[407660844,1772623832411,-1034.71,0.00017579,2]
[407660846,1772623832420,-1034.71,0.00018146,2]
[407660848,1772623832430,-1034.71,0.00018713,2]
[407660850,1772623832440,-2000.0,0.000192,2]
[407660852,1772623832450,-1034.71,0.0001928,2]
[407660854,1772623832460,-200.0,0.00019287,2]
[407660856,1772623832470,-2570.43,0.00019339,2]
[407660858,1772623832479,-1034.71,0.00019847,2]
[407660859,1772623832488,-1034.71,0.00020414,2]
[407660860,1772623832498,-1500.0,0.0002068,2]
[407660861,1772623832507,-166.66,0.0002086,2]
[407660862,1772623832516,-1034.71,0.00020982,2]
[407660863,1772623832526,-200.0,0.00021109,2]
[407660864,1772623832536,-1034.71,0.00021549,2]
[407660865,1772623832546,-166.66,0.00021549,2]
[407660866,1772623832555,-166.66,0.00022238,2]
[407660867,1772623832565,-1194.45945272,0.00022343,2]
[407660868,1772623832574,-2458.0,0.00022443,2]
[407660869,1772623832583,-2000.0,0.000229,2]
[407660870,1772623832593,-166.66,0.00022926,2]
[407660871,1772623832603,-153.57,0.00022944,2]
[407660872,1772623832612,-1500.0,0.00023288,2]
[407660873,1772623832622,-166.66,0.00023615,2]
[407660874,1772623832631,-166.66,0.00024303,2]
[407660875,1772623832640,-153.57,0.00024378,2]
[407660876,1772623832650,-5000.0,0.00024488,2]
[407660877,1772623832659,-2500.0,0.00024488,2]
[407660878,1772623832669,-589.03058754,0.000245,2]
[407660879,1772623832679,-1558.86654955,0.000245,2]
[407660880,1772623832688,-296.86820402,0.00024578,2]
[407660881,1772623832697,-500.0,0.00024587,2]
[407660882,1772623832709,-390.33189681,0.00024587,2]
[407660883,1772623832720,-37582.45229952,0.00024588,2]
[407660884,1772623832732,-4291.55535162,0.00024588,2]
[407660885,1772623832744,-2026.8840699,0.00024588,2]
[407660886,1772623832757,-1078.81106435,0.00024588,2]
[407660889,1772623838267,-1428.80625524,0.00024588,2]
[407660890,1772623838278,-405.14344853,0.00024588,2]
[407660891,1772623838321,-1347.19376052,0.00024588,2]
[407661031,1772623840294,-774.6985844,0.00024488,2]
[407661032,1772623840405,-1559.04062305,0.00024488,2]
[407661105,1772623843204,-3744.0,0.00022443,2]
[407661106,1772623843214,-166.26079255,0.00024488,2]
[407661107,1772623843225,-114794.83476165,0.00024588,2]
[407661113,1772623843518,-647909.60986483,0.00024588,2]
[407661118,1772623846312,-118141.80223728,0.00024588,2]
[407661119,1772623846323,-5311.88564581,0.00024588,2]
[407661120,1772623846366,-67575.0622785,0.00024588,2]
[407661121,1772623846423,-32597.79857938,0.00024588,2]
[407661176,1772625032215,-200.34698847,0.00021269,2]
[407661177,1772625032226,-300.0,0.00021281,2]
[407661178,1772625032235,-350.9714434,0.00021294,2]
[407661179,1772625032247,-1207.84090024,0.00021294,2]
[407661180,1772625032268,-697.4232,0.00021294,2]
[407661181,1772625032281,-243.76445636,0.00021294,2]
[407661182,1772625032291,-600.0,0.00021319,2]
[407661183,1772625032309,-300.0,0.00021319,2]
[407661184,1772625032320,-236.32992443,0.00021348,2]
[407661185,1772625032333,-387.11639996,0.00021348,2]
[407661186,1772625032345,-576.55367561,0.00021348,2]
[407661187,1772625032355,-600.0,0.00021349,2]
[407661188,1772625032364,-600.0,0.00021349,2]
[407661189,1772625032374,-600.0,0.00021349,2]
[407661190,1772625032384,-279.02229031,0.00021349,2]
[407661191,1772625032393,-243.38899478,0.00021369,2]
[407661192,1772625032405,-594.93100522,0.00021369,2]
[407661193,1772625032414,-300.0,0.00021369,2]
[407661194,1772625032423,-239.8371998,0.00021369,2]
[407661196,1772625032435,-404.57355337,0.00021369,2]
[407661198,1772625032446,-795.683759,0.00021369,2]
[407661211,1772625038341,-1298.66966015,0.00021369,2]
[407661212,1772625038349,-300.0,0.00021369,2]
[407661213,1772625038358,-23.31091499,0.00021369,2]
[407661214,1772625038369,-263.1905754,0.00021369,2]
[407661215,1772625038377,-407.88250998,0.00022335,2]
[407661216,1772625038387,-592.11749002,0.00022335,2]
[407661217,1772625038395,-109.61523587,0.00022526,2]
[407661218,1772625038405,-390.38476413,0.00022526,2]
[407661219,1772625038414,-1011.52769337,0.00022587,2]
[407661220,1772625038424,-1000.18778537,0.00022587,2]
[407661221,1772625038434,-86.91452126,0.00022587,2]
[407661222,1772625038446,-778.77547874,0.00022625,2]
[407661223,1772625038456,-4221.22452126,0.00022625,2]
[407661224,1772625038466,-166.66,0.00022795,30]
[407661225,1772625038474,-1852.42,0.00022852,2]
[407661226,1772625038482,-1003.37515173,0.00022892,2]
[407661227,1772625038493,-9936.12384398,0.00022892,2]
[407661228,1772625038503,-1057.47540344,0.00022892,2]
[407661229,1772625038514,-8732.73560085,0.00022892,2]
[407661230,1772625038522,-320.0,0.00022928,2]
[407661231,1772625038532,-150.0,0.0002307,2]
[407661232,1772625038541,-150.0,0.00023101,2]
[407661233,1772625038549,-413.314,0.00023102,2]
[407661234,1772625038558,-367.721,0.00023102,2]
[407661235,1772625038567,-166.66,0.00023275,30]
[407661236,1772625038575,-600.0,0.00023396,2]
[407661237,1772625038584,-300.0,0.00023396,2]
[407661238,1772625038592,-289.91892459,0.00023396,2]
[407661239,1772625038601,-2500.0,0.00023396,2]
[407661240,1772625038610,-300.0,0.00023396,2]
[407661242,1772625038618,-5000.0,0.00023506,2]
[407661244,1772625038627,-150.0,0.00023506,2]
[407661246,1772625038636,-300.0,0.00023506,2]
[407661249,1772625038652,-200.0,0.00023506,2]
[407661251,1772625038661,-166.66,0.00023755,30]
[407661253,1772625038670,-190.42579039,0.00023891,2]
[407661255,1772625038679,-166.66,0.00024235,30]
[407661257,1772625038688,-150.0,0.00024299,2]
[407661259,1772625038696,-150.0,0.00024299,2]
[407661261,1772625038704,-150.0,0.00024299,2]
[407661263,1772625038713,-150.0,0.00024354,2]
[407661264,1772625038722,-150.0,0.00024354,2]
[407661265,1772625038731,-150.0,0.00024354,2]
[407661266,1772625038740,-28999.2764,0.00024373,2]
[407661267,1772625038749,-1000.0,0.00024373,2]
[407661268,1772625038758,-5000.0,0.00024373,2]
[407661269,1772625038767,-2500.0,0.00024373,2]
[407661270,1772625038777,-530.12752884,0.00024393,2]
[407661271,1772625038786,-613.70799702,0.00024393,2]
[407661272,1772625038795,-1299.05545795,0.00024393,2]
[407661273,1772625038803,-200.0,0.00024409,2]
[407661274,1772625038811,-271.13230234,0.00024409,2]
[407661275,1772625038820,-200.0,0.00024409,2]
[407661276,1772625038829,-197.91213602,0.00024463,2]
[407661277,1772625038839,-8824.69286207,0.00024473,2]
[407661278,1772625038849,-1941.34054436,0.00024473,2]
[407661279,1772625038860,-1633.88024855,0.00024473,2]
[407661280,1772625038870,-5204.3466137,0.00024473,2]
[407661281,1772625038880,-300.28978911,0.00024473,2]
[407661282,1772625038891,-5755.80054029,0.00024473,2]
[407661283,1772625038901,-883.3694499,0.00024473,2]
[407661285,1772625040489,-2458.0,0.00023102,2]
[407661287,1772625040497,-3550.50315525,0.00024473,2]
[407661293,1772625043377,-151184.89916728,0.00024473,2]
[407661294,1772625043534,-7885.69028909,0.00024473,2]
[407661295,1772625043586,-16146.36300254,0.00024473,2]
[407661309,1772625046217,-104253.76869241,0.00024473,2]
[407661320,1772625046376,-1360.5,0.00024473,2]
[407661329,1772626155163,-2300.80778223,8e-05,2]
[407661330,1772626155186,-11.73564118,0.00012,2]
[407661344,1772626231395,-351.71710431,0.00012,2]
[407661348,1772626231407,-235.42655983,0.00013011,2]
[407661350,1772626231418,-220.03,0.00013111,2]
[407661352,1772626231429,-300.0,0.00013879,2]
[407661354,1772626231439,-299.8335932,0.00013879,2]
[407661356,1772626231503,-0.1664068,0.00013879,2]
[407661357,1772626231519,-300.0,0.00013879,2]
[407661358,1772626231532,-500.0,0.00014373,2]
[407661359,1772626231543,-500.38582798,0.00014373,2]
[407661360,1772626231552,-500.0,0.00014373,2]
[407661361,1772626231562,-502.26276919,0.00014373,2]
[407661362,1772626231572,-719.69548812,0.00015941,2]
[407661363,1772626231584,-163.0,0.000169,20]
[407661364,1772626231593,-2026.8840699,0.00017999,2]
[407661365,1772626231604,-63745.9021302,0.00018,2]
[407661366,1772626231618,-1634.00894998,0.00018,2]
[407661367,1772626231637,-687.16138692,0.00018,2]
[407661368,1772626231660,-22081.03141269,0.00018,2]
[407661369,1772626231691,-6779.46985046,0.00018,2]
[407661370,1772626231705,-893.41938866,0.00018,2]
[407661371,1772626231717,-1295.21988168,0.00018,2]
[407661372,1772626231733,-321.55982235,0.00018,2]
[407661373,1772626231747,-2256.41771873,0.00018,2]
[407661374,1772626231759,-262.75167852,0.00018,2]
[407661376,1772626231772,-1286.0085527,0.00018,2]
[407661377,1772626231785,-347.43508066,0.00018,2]
[407661378,1772626231797,-4045.16016783,0.00018,2]
[407661379,1772626231808,-22433.54923485,0.00018,2]
[407661380,1772626231819,-9516.0834635,0.00018,2]
[407661381,1772626231830,-20779.470314,0.00018,2]
[407661383,1772626231841,-1254.41808677,0.00018,2]
[407661385,1772626231852,-492.21212702,0.00018,2]
[407661387,1772626231863,-784.32744492,0.00018,2]
[407661430,1772626237545,-735.44834031,0.00018,2]
[407661431,1772626237557,-3059.22637876,0.00018,2]
[407661432,1772626237601,-1623.70486216,0.00018,2]
[407661433,1772626237660,-163801.64279915,0.00018,2]
[407661434,1772626237670,-2146.58681089,0.000204,2]
[407661435,1772626237680,-2000.0,0.000205,2]
[407661436,1772626237690,-88275.82671572,0.000206,2]
[407661437,1772626237699,-3393.2103375,0.000209,2]
[407661438,1772626237709,-150.0,0.00021,30]
[407661439,1772626237718,-500.0,0.00022514,2]
[407661440,1772626237728,-9884.97,0.00022562,2]
[407661441,1772626237737,-2458.0,0.00022776,2]
[407661442,1772626237747,-2146.58681085,0.00023286,2]
[407661443,1772626237757,-1500.0,0.00023288,2]
[407661444,1772626237766,-1500.0,0.0002336,2]
[407661445,1772626237776,-153.57,0.00023423,2]
[407661446,1772626237786,-200.0,0.0002347,2]
[407661447,1772626237794,-300.0,0.000236,8]
[407661448,1772626237802,-600.0,0.000237,8]
[407661449,1772626237811,-3393.21033748,0.0002373,2]
[407661450,1772626237820,-485.27,0.00023774,2]
[407661451,1772626237829,-150.0,0.00023792,2]
[407661452,1772626237838,-1000.0,0.000238,8]
[407661453,1772626237847,-1300.0,0.000239,8]
[407661454,1772626237856,-2000.0,0.000242,2]
[407661455,1772626237866,-5000.0,0.00024272,2]
[407661456,1772626237875,-199.65636282,0.00024273,4]
[407661457,1772626237885,-1082.546215,0.00024273,2]
[407661458,1772626237898,-265.85621396,0.00024273,2]
[407661459,1772626237908,-7698.89343681,0.00024273,2]
[407661460,1772626237919,-8827.94977088,0.00024273,2]
[407661461,1772626237928,-535.28932172,0.00024273,2]
[407661463,1772626237938,-428.80962803,0.00024362,2]
[407661465,1772626237947,-151.0,0.00024369,7]
[407661466,1772626237958,-500.0,0.00024371,2]
[407661467,1772626237967,-500.0,0.00024371,2]
[407661468,1772626237976,-500.0,0.00024371,2]
[407661469,1772626237985,-500.0,0.00024371,2]
[407661470,1772626237995,-500.0,0.00024371,2]
[407661471,1772626238004,-500.0,0.00024371,2]
[407661472,1772626238014,-500.0,0.00024371,2]
[407661473,1772626238024,-549.72659251,0.00024371,2]
[407661474,1772626238034,-500.0,0.00024371,2]
[407661475,1772626238044,-263.18635819,0.00024371,2]
[407661476,1772626238053,-500.0,0.00024371,2]
[407661477,1772626238063,-500.0,0.00024371,2]
[407661478,1772626238073,-500.0,0.00024371,2]
[407661479,1772626238082,-241.00711717,0.00024371,2]
[407661480,1772626238092,-500.0,0.00024371,2]
[407661481,1772626238111,-500.0,0.00024371,2]
[407661482,1772626238128,-500.0,0.00024371,2]
[407661483,1772626238139,-500.0,0.00024371,2]
[407661484,1772626238150,-500.0,0.00024371,2]
[407661485,1772626238160,-500.0,0.00024371,2]
[407661486,1772626238170,-500.0,0.00024371,2]
[407661487,1772626238182,-500.0,0.00024371,2]
[407661488,1772626238193,-400.0,0.00024371,2]
[407661489,1772626238204,-500.0,0.00024371,2]
[407661490,1772626238214,-161.68836412,0.00024371,2]
[407661491,1772626238226,-500.0,0.00024371,2]
[407661492,1772626238238,-500.0,0.00024371,2]
[407661493,1772626238248,-500.0,0.00024371,2]
[407661494,1772626238259,-500.0,0.00024371,2]
[407661495,1772626238268,-500.0,0.00024371,2]
[407661496,1772626238277,-162.47897413,0.00024371,2]
[407661497,1772626238288,-100255.62913577,0.00024372,2]
[407661498,1772626238300,-1508.13815535,0.00024372,2]
[407661499,1772626238313,-449.3404125,0.00024372,2]
[407661500,1772626238326,-780.00000001,0.00024372,2]
[407661501,1772626239677,-413.0,0.00022776,2]
[407661502,1772626239686,-3484.78383234,0.00024372,2]
[407661503,1772626239698,-523.34287504,0.00024372,2]
[407661504,1772626239730,-5706.92928843,0.00024372,2]
[407661505,1772626239785,-500.0,0.00024372,2]
[407661506,1772626239859,-22927.27443191,0.00024372,2]
[407661507,1772626239870,-557.09115348,0.00024372,2]
[407661522,1772626242871,-14978.83920229,0.00024372,2]
[407661524,1772626242883,-2082.54561959,0.00024372,2]
[407661525,1772626242894,-164087.10278406,0.00024372,2]
[407661535,1772626245408,-500.0,0.00024372,2]
[407661536,1772626245420,-262.90749993,0.00024372,2]
[407661537,1772626245432,-57570.09494732,0.00024372,2]
[407661538,1772626245674,-6104.74953664,0.00024372,2]
[407661601,1772627404473,150.0,8.998e-05,14]
[407661603,1772627431647,-224.0,8.932e-05,2]
[407661604,1772627431658,-250.0,8.988e-05,2]
[407661605,1772627431668,-300.0,8.988e-05,2]
[407661606,1772627431678,-1200.0,8.997e-05,2]
[407661607,1772627431688,-228.25902741,8.998e-05,2]
[407661608,1772627431699,-300.0,8.998e-05,2]
[407661609,1772627431711,-300.0,8.999e-05,2]
[407661610,1772627431722,-300.0,8.999e-05,2]
[407661611,1772627431734,-1200.0,8.999e-05,2]
[407661612,1772627431745,-300.0,8.999e-05,2]
[407661613,1772627431756,-300.0,8.999e-05,2]
[407661614,1772627431767,-2055.19299682,9e-05,2]
[407661615,1772627431780,-6944.80700318,9e-05,2]
[407661616,1772627431790,-150.0,9.002e-05,2]
[407661617,1772627431801,-500.0,9.003e-05,2]
[407661618,1772627431812,-500.0,9.003e-05,2]
[407661619,1772627431824,-604.37882443,9.003e-05,2]
[407661620,1772627431836,-600.0,9.003e-05,2]
[407661621,1772627431847,-600.0,9.003e-05,2]
[407661622,1772627431858,-500.0,9.003e-05,2]
[407661623,1772627431869,-948.24735875,9.003e-05,2]
[407661625,1772627431880,-535.24701634,9.003e-05,2]
[407661627,1772627431891,-524.792161,9.003e-05,2]
[407661628,1772627431904,-9000.0,9.5e-05,2]
[407661629,1772627431921,-228.2590274,9.824e-05,2]
[407661630,1772627431932,-1611.81509603,9.825e-05,2]
[407661631,1772627431944,-250.0,9.825e-05,2]
[407661632,1772627431956,-4365.64687723,9.825e-05,2]
[407661633,1772627431968,-250.0,9.875e-05,2]
[407661634,1772627431978,-314.0,9.897e-05,2]
[407661635,1772627431990,-185.0,9.898e-05,2]
[407661636,1772627432001,-420.0,9.899e-05,2]
[407661637,1772627432011,-1680.0,9.899e-05,2]